bitfinex/quotes_ETHUSD_20250415
["timestamp","ask_amount","ask_price","bid_price","bid_amount"]
[1744700406865,0.692387,1636.5,1636.3,6.11121]
[1744700407236,0.7531,1636.4,1636.1,12.22395]
[1744700407442,0.7841,1636.2,1635.9,12.22527]
[1744700407835,6.89596,1636.2,1635.9,6.11262]
[1744700408033,6.89596,1636.2,1635.8,6.11321]
[1744700408034,13.00803,1636.2,1635.8,6.11321]
[1744700408233,14.829633,1636.2,1635.8,6.11321]
[1744700408765,2.605703,1636.2,1635.9,6.11265]
[1744700408967,0.7841,1636.2,1635.9,6.11265]
[1744700409776,6.89583,1636.2,1635.9,6.11265]
[1744700410064,0.7841,1636.2,1635.8,2.99053242]
[1744700410361,0.7841,1636.2,1636.1,6.11209]
[1744700410567,0.7841,1636.2,1636.0,6.1123]
[1744700411367,0.7841,1636.2,1635.9,12.22542]
[1744700412257,0.7841,1636.2,1636.0,6.11215]
[1744700412458,5.208,1636.3,1636.0,6.11215]
[1744700412459,5.9865,1636.3,1636.1,6.11195]
[1744700412764,5.207,1636.3,1636.1,6.11195]
[1744700412968,5.207,1636.5,1636.2,3.74673242]
[1744700413169,5.207,1636.5,1636.4,6.11097]
[1744700414386,6.0054,1636.8,1636.6,6.10989]
[1744700414682,6.0054,1636.8,1636.7,6.10985]
[1744700414683,5.207,1636.8,1636.7,6.10985]
[1744700415637,5.207,1636.8,1636.6,12.21998]
[1744700416385,5.207,1636.8,1636.7,6.10985]
[1744700418515,0.7984,1637.0,1636.8,6.10917]
[1744700418693,5.207,1637.1,1636.9,6.1091]
[1744700418898,5.207,1637.1,1637.0,6.10873]
[1744700419135,6.14,1637.6,1637.0,6.10873]
[1744700419136,0.8097,1637.6,1637.1,0.7841]
[1744700419416,0.8097,1637.6,1637.1,3.77463242]
[1744700419708,0.8097,1637.6,1637.4,6.10722]
[1744700419897,1.501283,1637.6,1637.4,6.10722]
[1744700420070,1.501283,1637.6,1637.3,6.10759]
[1744700420411,5.206,1637.5,1637.3,6.10759]
[1744700420709,5.206,1637.5,1637.2,12.21564]
[1744700421411,5.206,1637.5,1637.3,6.10759]
[1744700425080,0.7975,1637.8,1637.4,6.10724]
[1744700425418,0.7975,1637.8,1637.6,6.10644]
[1744700425419,6.0025,1637.8,1637.6,6.10644]
[1744700425584,6.0025,1637.8,1637.6,12.21275]
[1744700425769,6.0025,1637.8,1637.6,6.10631]
[1744700427690,6.0025,1637.8,1637.6,12.2126]
[1744700427893,6.0025,1637.8,1637.6,6.10629]
[1744700428094,18.23444242,1638.3,1637.6,6.10629]
[1744700428095,0.8702,1638.4,1638.3,6.10388]
[1744700428408,0.8702,1638.4,1638.2,6.1041]
[1744700428720,0.8702,1638.4,1638.1,12.20894]
[1744700429217,0.8702,1638.4,1638.0,9.09549242]
[1744700429424,0.8702,1638.4,1638.0,9.09540242]
[1744700429627,0.8702,1638.4,1638.1,6.1045]
[1744700429778,0.8702,1638.4,1638.0,9.09540242]
[1744700429779,1.9730295,1638.4,1638.0,2.99053242]
[1744700429984,6.88738,1638.1,1637.7,6.10608]
[1744700430186,6.10537,1637.9,1637.5,6.1067]
[1744700430432,6.88854,1637.8,1637.3,9.88282242]
[1744700430731,11.31028,1637.7,1637.3,9.09797242]
[1744700430932,6.1067,1637.6,1637.2,6.10794]
[1744700431229,0.777,1637.5,1637.2,6.10784]
[1744700431635,0.777,1637.5,1637.3,6.10759]
[1744700433295,0.777,1637.5,1637.4,6.10724]
[1744700433501,13.881262,1637.7,1637.4,6.10724]
[1744700433828,12.05958,1637.9,1637.6,6.10645]
[1744700434033,5.9542,1637.9,1637.5,2.99053242]
[1744700434233,6.10597,1637.8,1637.4,12.21426]
[1744700434926,6.10575,1637.8,1637.3,9.09811242]
[1744700435084,6.10575,1637.8,1637.3,9.09797242]
[1744700435085,0.7721,1637.6,1637.3,9.09797242]
[1744700435284,6.10763,1637.3,1636.9,6.86845]
[1744700435487,11.31015,1637.5,1637.1,6.10836]
[1744700435785,0.7691,1637.4,1637.2,6.10776]
[1744700435984,5.203,1637.5,1637.3,6.10758]
[1744700437080,5.203,1637.5,1637.2,9.09829242]
[1744700437585,5.203,1637.5,1637.3,6.10744]
[1744700438138,11.30995,1637.5,1637.2,9.09845242]
[1744700438335,13.129919,1637.5,1637.2,6.10792]
[1744700439285,7.022969,1637.5,1637.2,6.10792]
[1744700439479,7.022969,1637.5,1637.1,9.09882242]
[1744700439480,5.203,1637.5,1637.4,6.10724]
[1744700439945,5.203,1637.5,1637.3,9.89608242]
[1744700439946,5.9991,1637.8,1637.3,9.89608242]
[1744700440151,5.9991,1637.8,1637.5,9.09709242]
[1744700440567,6.10647,1637.7,1637.3,9.89613242]
[1744700440972,6.10647,1637.7,1637.4,6.10721]
[1744700441465,13.315363,1637.8,1637.4,6.10712]
[1744700441637,5.9991,1637.8,1637.6,6.10647]
[1744700441837,5.203,1637.8,1637.7,6.10612]
[1744700442853,5.203,1637.8,1637.7,9.09665242]
[1744700443801,5.258,1638.1,1637.8,6.10543]
[1744700444098,6.10513,1638.0,1637.7,2.99053242]
[1744700444303,11.36265,1638.1,1637.7,9.09650242]
[1744700444504,5.258,1638.1,1637.7,9.09663242]
[1744700444714,5.258,1638.1,1637.9,6.10519]
[1744700444917,5.258,1638.1,1637.9,6.10518]
[1744700445217,5.258,1638.2,1638.0,6.10469]
[1744700445575,5.258,1638.2,1637.9,6.90345]
[1744700445880,5.258,1638.2,1638.0,6.1049]
[1744700446232,9.97615,1638.4,1638.0,9.18684298]
[1744700446233,0.05,1638.4,1638.0,9.18684298]
[1744700446391,0.05,1638.4,1638.3,6.10388]
[1744700448681,0.05,1638.4,1638.2,6.8649]
[1744700448880,0.8323,1638.4,1637.9,3.7704]
[1744700449121,6.93594,1638.4,1638.0,6.10487]
[1744700449291,0.8323,1638.4,1638.1,6.10442]
[1744700450047,0.05,1638.4,1638.1,6.10442]
[1744700450614,0.05,1638.4,1638.2,6.10424]
[1744700451040,7.44948,1638.3,1638.2,0.06104268]
[1744700451208,7.44948,1638.3,1636.9,6.575519]
[1744700451209,6.10666,1637.6,1637.0,3.78655931]
[1744700451407,0.06104015,1637.5,1637.2,4.0]
[1744700451741,0.06104015,1637.5,1637.3,6.10757]
[1744700452036,0.06104015,1637.5,1637.2,6.10777]
[1744700452740,0.06104015,1637.5,1637.3,6.10748]
[1744700452964,12.21926015,1637.6,1637.2,6.10794]
[1744700453106,6.16792015,1637.5,1637.1,12.21666]
[1744700453306,0.06104015,1637.5,1637.2,6.10783]
[1744700453657,0.06104015,1637.5,1637.2,12.21563]
[1744700454657,0.06104015,1637.5,1637.2,6.1078]
[1744700455663,0.06104015,1637.5,1637.0,9.89528931]
[1744700455810,6.9305,1637.2,1636.8,6.90754]
[1744700456012,6.14034015,1637.2,1636.9,6.10908]
[1744700456364,6.14034015,1637.2,1636.9,6.10907]
[1744700456365,12.24836015,1637.2,1636.9,6.10907]
[1744700456573,6.14034015,1637.2,1636.9,6.10907]
[1744700456709,6.14034015,1637.2,1636.9,12.218]
[1744700457411,6.14034015,1637.2,1636.9,6.10893]
[1744700457609,12.24834015,1637.2,1636.9,6.10893]
[1744700457810,12.24834015,1637.2,1636.8,6.10944]
[1744700459056,12.24834015,1637.2,1636.7,6.1098]
[1744700459057,7.97594216,1637.2,1636.7,6.1098]
[1744700459242,6.10858,1637.1,1636.7,6.1098]
[1744700459660,6.16962015,1637.1,1636.7,6.1098]
[1744700460259,6.16962015,1637.1,1636.7,12.21949]
[1744700460433,6.10962,1636.8,1636.4,6.90905]
[1744700460760,6.98695015,1636.7,1636.3,6.11131]
[1744700461141,6.11031,1636.6,1636.2,6.89948]
[1744700461339,5.868962,1636.8,1635.9,6.90042]
[1744700461340,6.11149,1636.3,1635.9,6.90042]
[1744700461534,5.258,1636.3,1635.9,0.7878]
[1744700461737,5.258,1636.5,1636.2,9.13245931]
[1744700461933,5.258,1636.5,1636.3,6.11108]
[1744700462160,5.258,1636.5,1636.4,6.11097]
[1744700462664,5.258,1636.5,1636.2,6.11167]
[1744700463375,5.258,1636.5,1636.2,12.22324]
[1744700463943,5.258,1636.5,1636.3,6.11133]
[1744700464884,5.258,1636.5,1636.4,6.11097]
[1744700465177,5.259,1636.6,1636.5,6.11053]
[1744700467282,0.06104015,1636.9,1636.3,6.11134]
[1744700467484,5.259,1636.8,1636.7,6.10985]
[1744700467649,5.259,1637.1,1637.0,6.10873]
[1744700468888,5.259,1637.2,1637.0,6.16966685]
[1744700469179,5.259,1637.2,1637.1,6.10836]
[1744700469685,5.259,1637.3,1637.2,6.10791]
[1744700471884,5.259,1637.3,1637.1,12.21637]
[1744700472200,11.46754,1637.6,1637.2,6.10766]
[1744700472400,11.52858015,1637.6,1637.2,12.21546]
[1744700472702,11.52858015,1637.6,1637.3,6.10756]
[1744700475724,5.42204015,1637.6,1637.3,6.10741]
[1744700475912,6.57487717,1637.6,1637.3,6.10741]
[1744700476093,6.57487717,1637.6,1637.3,12.21484]
[1744700476288,3.55,1637.9,1637.5,6.10687]
[1744700476289,9.10549,1637.9,1637.5,6.10687]
[1744700476494,5.42104015,1637.8,1637.5,6.10687]
[1744700476689,5.42104015,1637.8,1637.6,6.10646]
[1744700476889,5.36,1637.8,1637.7,6.10612]
[1744700478501,5.896,1637.8,1637.5,6.10682]
[1744700478823,12.06292015,1637.8,1637.5,6.10682]
[1744700479616,6.10615,1637.7,1637.4,6.10718]
[1744700479825,13.04393015,1637.7,1637.3,6.10755]
[1744700480133,13.04393015,1637.7,1637.4,6.10691]
[1744700480134,1.36543317,1637.6,1637.4,6.10691]
[1744700480306,0.06104015,1637.6,1637.4,6.10691]
[1744700480503,0.7703,1637.7,1637.2,6.96354122]
[1744700480829,5.36,1637.7,1637.6,6.10622]
[1744700481397,5.36,1637.7,1637.6,6.90432]
[1744700481592,0.7769,1638.1,1638.0,6.105]
[1744700481800,5.40454015,1638.2,1638.0,12.20981]
[1744700482019,5.40454015,1638.2,1638.0,6.10481]
[1744700482233,5.36,1638.2,1638.1,6.10463]
[1744700482437,0.8269,1638.4,1638.2,12.20815]
[1744700482438,0.05,1638.4,1638.2,12.20815]
[1744700482642,0.05,1638.4,1638.3,6.10388]
[1744700484307,0.05,1638.4,1638.2,6.10405]
[1744700485002,0.05,1638.4,1638.2,12.20815]
[1744700485337,0.05,1638.4,1638.3,6.10388]
[1744700485837,0.05,1638.4,1638.2,6.10405]
[1744700486002,0.09454015,1638.4,1638.1,6.10462]
[1744700486196,0.09454015,1638.4,1638.0,6.10498]
[1744700486197,6.19822015,1638.4,1638.0,6.10498]
[1744700487433,6.10393,1638.3,1638.0,6.10498]
[1744700487842,6.19822015,1638.4,1638.0,12.2098]
[1744700488040,0.09454015,1638.4,1638.1,6.10445]
[1744700488707,6.19806015,1638.4,1638.0,12.20981]
[1744700488912,6.19806015,1638.4,1638.1,6.1046]
[1744700489113,6.19806015,1638.4,1638.0,12.20973]
[1744700490045,6.19806015,1638.4,1638.1,6.10457]
[1744700490347,0.09454015,1638.4,1638.1,12.20903]
[1744700491362,6.89426017,1638.4,1638.1,6.10446]
[1744700492253,0.79072017,1638.4,1638.1,12.20892]
[1744700492470,0.79072017,1638.4,1638.1,12.20894]
[1744700492625,0.79072017,1638.4,1638.1,6.10444]
[1744700492827,0.05,1638.4,1638.3,6.10388]
[1744700501369,0.05,1638.4,1638.2,6.10407]
[1744700502149,0.05,1638.4,1638.2,12.20818]
[1744700502351,0.05,1638.4,1638.2,6.10407]
[1744700502974,0.05,1638.4,1638.2,12.20819]
[1744700504552,0.05,1638.4,1638.3,6.10388]
[1744700505051,0.05,1638.4,1638.2,12.20819]
[1744700505953,0.05,1638.4,1638.2,6.10407]
[1744700506154,0.05,1638.4,1637.8,3.02095931]
[1744700506155,0.7679,1638.3,1637.8,3.7695]
[1744700506393,6.8718,1638.3,1638.0,6.10488]
[1744700506675,0.05,1638.4,1638.3,6.10388]
[1744700515075,0.05,1638.4,1638.3,6.16490863]
[1744700515475,0.05,1638.4,1638.3,6.10388]
[1744700517854,0.05,1638.4,1638.2,12.2082]
[1744700518292,0.05,1638.4,1638.3,6.10388]
[1744700526468,0.05,1638.4,1638.3,6.16491234]
[1744700526810,0.05,1638.4,1638.3,6.10388]
[1744700528968,0.05,1638.4,1638.3,6.16491235]
[1744700529397,0.05,1638.4,1638.3,6.10388]
[1744700529603,0.05,1638.4,1638.3,6.16491229]
[1744700529810,6.1392,1639.0,1638.9,6.10135]
[1744700530072,6.1392,1639.0,1638.9,6.10165]
[1744700530824,5.344,1639.0,1638.9,6.10165]
[1744700531319,6.1392,1639.2,1639.0,6.10128]
[1744700532012,5.344,1639.2,1639.0,6.10128]
[1744700532395,5.344,1639.2,1639.0,12.20256]
[1744700532807,5.344,1639.2,1639.1,6.1009]
[1744700533295,5.344,1639.2,1639.0,6.85462]
[1744700533496,5.344,1639.2,1639.0,12.95573]
[1744700533803,5.344,1639.2,1639.1,6.1009]
[1744700536265,0.05,1639.4,1639.2,6.10034]
[1744700536472,5.346,1639.4,1639.2,6.10034]
[1744700537966,5.346,1639.4,1639.1,9.08351633]
[1744700538311,11.49061015,1639.4,1639.0,6.10108]
[1744700538478,5.346,1639.4,1639.3,6.10016]
[1744700541152,5.346,1639.4,1639.2,6.87793]
[1744700541310,5.346,1639.4,1639.2,12.97831]
[1744700542928,5.346,1639.4,1639.3,6.10016]
[1744700545035,0.05,1639.4,1639.3,9.08282633]
[1744700545329,0.05,1639.4,1639.3,9.88092633]
[1744700545824,0.05,1639.4,1639.3,12.88092633]
[1744700546335,1e-05,1639.4,1639.3,13.43092633]
[1744700546831,1e-05,1639.4,1639.3,13.34160349]
[1744700551898,0.77331,1639.8,1639.6,6.09885]
[1744700552100,0.77331,1639.8,1639.6,12.19771]
[1744700553409,0.77331,1639.8,1639.7,6.09867]
[1744700554038,0.77331,1639.8,1639.5,15.18126633]
[1744700554335,0.77331,1639.8,1639.6,6.09896]
[1744700554698,0.77331,1639.8,1639.6,6.09887]
[1744700555223,0.77331,1639.8,1639.7,6.09867]
[1744700555418,0.77331,1639.8,1639.6,6.09887]
[1744700555933,0.77331,1639.8,1639.7,6.09867]
[1744700557460,5.295,1639.9,1639.7,12.19734]
[1744700557648,0.782,1640.2,1640.0,6.09727]
[1744700557817,0.832,1640.4,1640.2,6.09668]
[1744700558014,0.832,1640.4,1640.1,9.07979633]
[1744700558544,0.832,1640.4,1640.1,15.2377518]
[1744700558841,0.832,1640.4,1640.2,6.09671]
[1744700560845,0.832,1640.4,1640.2,6.09666]
[1744700561046,0.832,1640.4,1640.2,6.15761948]
[1744700561249,0.832,1640.4,1640.3,6.09644]
[1744700561751,0.832,1640.4,1640.1,9.07969633]
[1744700561958,0.832,1640.4,1640.1,12.19409]
[1744700562262,0.832,1640.4,1640.3,6.09644]
[1744700562263,0.05,1640.4,1640.3,6.09644]
[1744700562754,0.05,1640.4,1640.3,6.15739383]
[1744700563160,0.05,1640.4,1640.3,6.91659193]
[1744700563341,0.05,1640.4,1640.3,6.85564]
[1744700564355,0.05,1640.4,1640.3,9.85564]
[1744700564859,0.05,1640.4,1640.3,9.09644]
[1744700565354,0.05,1640.4,1640.3,6.09644]
[1744700567965,0.05,1640.4,1640.3,6.91624]
[1744700574378,0.05,1640.4,1640.3,9.91624]
[1744700578650,0.05,1640.4,1640.3,3.8198]
[1744700578893,0.05,1640.4,1640.3,9.91624]
[1744700580866,5.256,1640.9,1640.7,6.09495]
[1744700581193,0.8106,1641.0,1640.9,6.09421]
[1744700581352,0.8106,1641.0,1640.9,6.15514439]
[1744700581755,6.0787,1641.1,1640.9,12.24935439]
[1744700582082,6.0787,1641.1,1640.9,12.18842]
[1744700582591,6.0787,1641.1,1640.9,12.18824]
[1744700583303,6.0787,1641.1,1640.9,6.09403]
[1744700583497,6.0787,1641.1,1640.7,2.98266633]
[1744700583498,11.39224015,1641.1,1640.7,9.07760633]
[1744700583655,6.91477,1641.0,1640.7,9.07760633]
[1744700584069,0.8208,1641.0,1640.7,15.17236633]
[1744700584791,0.8208,1641.0,1640.8,6.09457]
[1744700584996,0.8208,1641.0,1640.8,12.24994774]
[1744700585504,0.8208,1641.0,1640.9,6.09421]
[1744700586191,0.8208,1641.0,1640.8,12.1889]
[1744700586902,0.8208,1641.0,1640.9,6.09421]
[1744700587292,6.0613,1641.1,1640.9,6.09421]
[1744700587626,7.276759,1641.1,1640.9,6.09421]
[1744700587823,7.276759,1641.1,1641.0,6.09384]
[1744700588121,6.0613,1641.1,1640.9,12.18812]
[1744700588842,6.0613,1641.1,1640.9,6.09405]
[1744700589208,0.8161,1641.0,1640.6,6.09507]
[1744700589404,6.09473,1640.8,1640.4,6.09595]
[1744700589642,0.8161,1640.7,1640.4,6.09589]
[1744700589954,0.8161,1640.7,1640.5,6.09569]
[1744700590525,0.8161,1640.7,1640.4,15.17472633]
[1744700591658,0.8161,1640.7,1640.4,9.07869633]
[1744700591865,6.87595,1640.6,1640.3,6.09638]
[1744700592624,0.7592,1640.5,1640.2,15.17620633]
[1744700592934,0.7592,1640.5,1640.3,6.09643]
[1744700593652,0.8303,1640.8,1640.4,3.04362182]
[1744700593851,0.8303,1640.9,1640.7,6.09495]
[1744700594052,0.8303,1641.2,1641.0,6.09357]
[1744700594426,0.8303,1641.2,1640.8,9.07713633]
[1744700594666,6.0931,1641.2,1640.7,6.09467]
[1744700594874,0.7637,1640.9,1640.6,9.07784633]
[1744700595228,6.85792,1640.9,1640.6,9.07784633]
[1744700595457,0.7637,1640.9,1640.6,9.07784633]
[1744700595634,0.7637,1640.9,1640.6,15.17303633]
[1744700595970,0.7637,1640.9,1640.6,15.17305633]
[1744700596273,0.7637,1640.9,1640.6,9.07784633]
[1744700596563,6.85798,1640.9,1640.6,9.07784633]
[1744700596768,6.85791,1640.9,1640.6,9.07784633]
[1744700596931,6.85791,1640.9,1640.6,6.09518]
[1744700598531,6.09497,1640.7,1640.4,9.07861633]
[1744700598733,13.00622,1640.8,1640.4,15.17451633]
[1744700598935,13.00622,1640.8,1640.4,9.07856633]
[1744700599375,6.89931,1640.7,1640.4,9.07856633]
[1744700599673,6.89931,1640.7,1640.3,12.19269]
[1744700600171,8.198706,1640.7,1640.3,12.19269]
[1744700600670,2.103696,1640.7,1640.4,6.09585]
[1744700601170,2.14823615,1640.7,1640.2,2.98266633]
[1744700601370,6.09548,1640.6,1640.2,15.17614633]
[1744700601668,0.7837,1640.5,1640.2,2.98266633]
[1744700602054,0.7837,1640.7,1640.4,6.09587]
[1744700602370,0.7662,1640.6,1640.2,9.07944633]
[1744700602528,0.7662,1640.5,1640.2,9.07944633]
[1744700602733,0.7662,1640.5,1640.3,0.06095729]
[1744700602933,0.7662,1640.5,1640.3,12.25351729]
[1744700603233,6.86207,1640.5,1640.2,6.09676]
[1744700603428,6.86207,1640.5,1640.2,6.09669]
[1744700603672,0.7662,1640.5,1640.2,12.19334]
[1744700603977,0.7662,1640.5,1640.2,6.09665]
[1744700604143,6.8619,1640.5,1640.2,6.09665]
[1744700604344,0.7662,1640.5,1640.2,6.09665]
[1744700604671,6.86192,1640.5,1640.2,12.19334]
[1744700604873,6.86192,1640.5,1640.2,6.09665]
[1744700606977,12.08292,1640.5,1640.2,6.09665]
[1744700609988,5.9872,1640.5,1640.2,12.19333]
[1744700610353,0.8257,1640.4,1640.0,6.09739]
[1744700610692,12.19328,1640.3,1639.9,6.09791]
[1744700610861,0.8257,1640.2,1639.9,6.09791]
[1744700611068,0.8257,1640.2,1639.9,12.19565]
[1744700611467,0.8257,1640.2,1640.0,6.09751]
[1744700613580,1.517928,1640.2,1639.8,9.08091633]
[1744700613754,5.221,1640.5,1639.7,6.09855]
[1744700613755,0.8027,1640.0,1639.7,6.09855]
[1744700614571,6.90035,1640.0,1639.7,6.09855]
[1744700614771,0.8027,1640.0,1639.7,12.19703]
[1744700615807,6.90028,1640.0,1639.7,6.09848]
[1744700616010,6.14283015,1639.9,1639.5,6.09927]
[1744700616307,6.90105,1639.8,1639.5,6.09927]
[1744700616879,0.8027,1639.8,1639.5,12.19852]
[1744700617080,6.90115,1639.8,1639.5,6.09925]
[1744700617406,0.690115,1639.7,1639.5,6.0994]
[1744700617635,0.8027,1639.8,1639.6,6.099]
[1744700617820,0.8027,1639.8,1639.5,6.0994]
[1744700617977,6.90102,1639.8,1639.5,6.0994]
[1744700618315,0.8027,1639.8,1639.6,6.09889]
[1744700618471,1.821866,1640.0,1639.6,6.09889]
[1744700618472,0.7906,1640.0,1639.8,6.0983]
[1744700618668,0.7906,1640.0,1639.8,12.19646]
[1744700618897,0.7906,1640.0,1639.8,6.09816]
[1744700619091,0.7906,1640.0,1639.8,6.09813]
[1744700621195,0.7906,1640.0,1639.7,9.08127633]
[1744700621196,0.7906,1640.0,1639.7,15.17976633]
[1744700621824,6.88819,1640.0,1639.6,6.86117]
[1744700621988,5.221,1640.1,1639.7,15.17972633]
[1744700622192,5.221,1640.1,1639.6,15.18060633]
[1744700622193,6.86798,1640.0,1639.6,15.18060633]
[1744700622526,6.86798,1640.0,1639.7,6.09864]
[1744700622727,2.588924,1640.0,1639.7,12.19728]
[1744700622932,5.221,1640.1,1639.8,2.98266633]
[1744700623224,5.221,1640.1,1639.9,6.09793]
[1744700623541,5.221,1640.1,1639.8,9.08091633]
[1744700625142,11.31825,1640.1,1639.8,6.09825]
[1744700626429,6.90229,1640.0,1639.7,6.09854]
[1744700626725,8.72879802,1640.0,1639.7,6.09854]
[1744700627228,2.63120802,1640.0,1639.7,12.25804877]
[1744700627417,2.63120802,1640.0,1639.7,6.09853]
[1744700628022,8.72876802,1640.0,1639.7,6.09853]
[1744700628326,14.87106817,1640.0,1639.6,9.88523633]
[1744700628525,14.82652802,1640.0,1639.6,9.88523633]
[1744700629319,0.8254,1639.8,1639.5,6.09924]
[1744700629524,6.92387,1639.8,1639.5,6.09924]
[1744700630631,6.09868,1639.7,1639.4,6.89122]
[1744700630808,12.96598,1639.6,1639.2,6.1005]
[1744700631139,8.16764202,1639.6,1639.2,12.20086]
[1744700631334,14.31146217,1639.6,1639.2,6.10036]
[1744700631506,14.26692202,1639.6,1639.2,6.10036]
[1744700631705,5.242,1639.7,1638.9,6.10163]
[1744700631706,5.242,1639.7,1639.4,0.7547]
[1744700632034,0.7808,1640.0,1639.8,6.09816]
[1744700632217,0.7808,1640.0,1639.7,6.09866]
[1744700632665,6.87848,1640.0,1639.6,6.09899]
[1744700632812,6.87848,1640.0,1639.6,12.19783]
[1744700633146,12.97631,1640.0,1639.6,6.09884]
[1744700633326,12.97626,1640.0,1639.6,6.09884]
[1744700633512,8.176106,1640.0,1639.6,12.1977]
[1744700633707,8.22064615,1640.0,1639.7,6.0986]
[1744700633909,0.7808,1640.0,1639.8,0.06098149]
[1744700634125,0.7808,1640.0,1639.8,6.09818]
[1744700634824,0.7808,1640.0,1639.7,6.09849]
[1744700635201,6.87841,1640.0,1639.7,6.09849]
[1744700637138,0.7808,1640.0,1639.8,6.09814]
[1744700637298,0.786,1640.1,1639.9,2.98266633]
[1744700637504,5.242,1640.2,1640.1,6.09718]
[1744700637911,5.242,1640.2,1640.0,12.19497]
[1744700638129,5.242,1640.2,1640.0,6.09741]
[1744700638914,5.242,1640.2,1640.1,6.09718]
[1744700639115,5.242,1640.2,1640.0,6.09741]
[1744700639512,5.242,1640.2,1640.0,12.19481]
[1744700639849,5.242,1640.2,1640.0,6.0974]
[1744700640356,5.242,1640.2,1640.1,6.09718]
[1744700640515,0.786,1640.3,1640.1,6.09718]
[1744700640851,5.242,1640.4,1640.3,6.09644]
[1744700641150,53.5723,1640.5,1640.3,12.19253]
[1744700641541,53.5723,1640.5,1640.3,6.09626]
[1744700641744,58.92953,1640.5,1640.2,6.09674]
[1744700641944,65.02528,1640.5,1640.2,6.09674]
[1744700642465,65.02528,1640.5,1640.1,6.09712]
[1744700642466,6.09611,1640.4,1640.1,6.09712]
[1744700642614,12.19245,1640.4,1640.0,6.09753]
[1744700642813,6.91579,1640.3,1640.0,6.09753]
[1744700643012,0.691579,1640.2,1640.0,6.09753]
[1744700643647,6.788539,1640.2,1639.9,6.09792]
[1744700643970,0.79484015,1640.1,1639.8,6.09826]
[1744700644113,0.7503,1640.1,1639.8,12.19644]
[1744700644314,0.7503,1640.1,1639.8,6.09818]
[1744700644558,0.7503,1640.1,1639.8,6.09816]
[1744700645115,0.7503,1640.1,1639.9,6.09779]
[1744700645313,0.7503,1640.1,1640.0,6.09756]
[1744700646723,0.83714015,1640.3,1640.0,6.09756]
[1744700647041,1.53046817,1640.3,1640.0,12.19512]
[1744700647246,1.53046817,1640.3,1640.0,6.09756]
[1744700647448,5.241,1640.2,1640.0,6.09756]
[1744700648134,5.241,1640.2,1640.0,12.195]
[1744700648331,5.241,1640.2,1640.1,6.09718]
[1744700648536,48.3201,1640.5,1640.2,6.0966]
[1744700648746,5.241,1640.4,1640.2,12.1932]
[1744700648968,5.241,1640.4,1640.2,6.0966]
[1744700651078,5.241,1640.4,1640.1,6.09711]
[1744700651255,0.7604,1640.3,1640.1,6.09711]
[1744700653648,5.241,1640.4,1640.3,6.09644]
[1744700654596,5.241,1640.4,1640.2,6.09665]
[1744700654981,5.241,1640.4,1640.2,12.19329]
[1744700656598,5.241,1640.4,1640.3,6.09644]
[1744700659500,6.0606,1640.4,1640.2,12.19332]
[1744700659794,6.0606,1640.4,1640.2,6.09664]
[1744700659979,0.04454015,1640.3,1640.0,6.09743]
[1744700660186,0.8056,1640.0,1639.7,6.09866]
[1744700660357,6.09895,1639.7,1639.3,0.7811]
[1744700660555,6.09799,1639.9,1639.2,6.10047]
[1744700660556,0.8056,1639.5,1639.2,6.10047]
[1744700660884,0.8209,1639.3,1639.0,6.10118]
[1744700661090,0.8209,1639.3,1639.0,6.1011]
[1744700661254,0.8209,1639.3,1638.9,6.10154]
[1744700661255,6.92111,1639.3,1638.9,6.10154]
[1744700661460,0.86544015,1639.3,1639.2,6.10053]
[1744700661684,5.244,1639.6,1639.4,6.09979]
[1744700661866,5.244,1639.6,1639.5,6.09942]
[1744700663887,5.244,1639.6,1639.5,6.1604098]
[1744700664088,6.10144015,1639.9,1639.7,6.09844]
[1744700664304,6.10144015,1639.9,1639.7,12.19688]
[1744700664305,6.0569,1639.9,1639.7,12.19688]
[1744700664500,47.542,1640.0,1639.8,6.0983]
[1744700664817,0.7569,1640.1,1639.8,6.0983]
[1744700664818,0.7569,1640.1,1640.0,6.09756]
[1744700664973,5.245,1640.3,1640.1,6.09691]
[1744700665305,5.245,1640.3,1640.1,12.19382]
[1744700665605,5.245,1640.3,1640.1,6.09691]
[1744700665806,5.245,1640.3,1640.1,12.19388]
[1744700666116,5.246,1640.6,1640.4,6.0958]
[1744700666281,0.7903,1640.7,1640.4,6.0958]
[1744700666608,0.7903,1640.7,1640.4,6.096]
[1744700666809,6.09535,1640.6,1640.3,6.09623]
[1744700667114,12.64386802,1640.6,1640.3,6.09623]
[1744700667580,6.54851802,1640.6,1640.4,6.0958]
[1744700667790,5.246,1640.6,1640.5,6.0957]
[1744700669833,6.0031,1640.9,1640.6,6.09507]
[1744700670038,6.0031,1640.9,1640.7,6.09485]
[1744700670186,5.245,1640.9,1640.8,6.09458]
[1744700671835,0.754,1641.1,1640.9,6.09411]
[1744700672000,5.244,1641.2,1641.0,6.09384]
[1744700672199,5.244,1641.2,1640.9,6.09407]
[1744700672406,6.45990402,1641.2,1640.9,6.09407]
[1744700672702,12.55301402,1641.2,1640.9,6.09407]
[1744700673101,6.45990402,1641.2,1640.9,6.09407]
[1744700673702,6.50444417,1641.2,1640.9,6.09407]
[1744700674817,5.244,1641.2,1641.1,6.09347]
[1744700675338,5.244,1641.2,1640.9,6.0942]
[1744700675638,5.28854015,1641.2,1640.9,12.18807]
[1744700675835,5.28854015,1641.2,1641.0,6.09383]